Cogmind - Beta 14 @@@ ROGUE MODE // 2025.04.27 @ 22:08:41 Player: DuckBoy Result: Destroyed by as-24928 with Assembled Maul Performance ------------- Evolutions (0) 0 Regions Visited (2) 400 Robots Destroyed (26) 130 Value Destroyed (684) 684 Prototype IDs (2) 40 Alien Tech Used (0) 0 Bonus (0) 0 TOTAL SCORE: 1254 Bonus ------- None Cogmind --------- Core Integrity 0/250 Matter 300/300 Energy 250/250 System Corruption 0% Temperature Cool (0) Movement Treading (240) Ox1 Location -10/Mines Parts ------- > --- POWER (1) -------- Ion Engine > --- PROPULSION (2) --- Light Treads Light Treads > --- UTILITY (2) ------ High-capacity Storage Unit Visual Processing Unit > --- WEAPON (2) ------- Assault Rifle Assault Rifle > --- INVENTORY (20) --- Ion Engine Light Ion Engine Light Treads Light Treads Light Treads Aluminum Leg Aluminum Leg Aluminum Leg Improved Heat Sink Hacking Suite Beam Cannon Bore Cannon Grenade Launcher Peak State ------------ > --- POWER ------------ Ion Engine > --- PROPULSION ------- Aluminum Leg Aluminum Leg > --- UTILITY ---------- High-capacity Storage Unit Visual Processing Unit > --- WEAPON ----------- Assault Rifle Assault Rifle > --- INVENTORY -------- Ion Engine Ion Engine Light Ion Engine Light Treads Light Treads Light Treads Light Treads Light Treads Aluminum Leg Aluminum Leg Improved Heat Sink Hacking Suite Assault Rifle Assault Rifle Assault Rifle Grenade Launcher [Rating: 10] Favorites ----------- Power Ion Engine Engine Ion Engine Propulsion Aluminum Leg Treads Light Treads Leg Aluminum Leg Wheel Compact Wheel Utility Visual Processing Unit Storage High-capacity Storage Unit Processor Visual Processing Unit Weapon Assault Rifle Ballistic Gun Assault Rifle Launcher Grenade Launcher Build | -11 -10 -10 ------- Run | Yrd Mat Min Slots Evolved . | . . . Power . | . . . Propulsion . | . . . Utility . | . . . Weapon . | . . . Parts Attached 29 | 6 16 7 Power 5 | 1 2 2 Engine 5 | 1 2 2 Core . | . . . Reactor . | . . . Propulsion 9 | 4 3 2 Treads 3 | 1 . 2 Leg 5 | 2 3 . Wheel 1 | 1 . . Hover . | . . . Flight . | . . . Utility 4 | 1 3 . Device . | . . . Storage 3 | 1 2 . Processor 1 | . 1 . Hackware . | . . . Protection . | . . . Artifact . | . . . Weapon 11 | . 8 3 Energy Gun . | . . . Energy Cannon . | . . . Ballistic Gun 8 | . 5 3 Ballistic Cannon . | . . . Launcher 3 | . 3 . Special Weapon . | . . . Impact Weapon . | . . . Slashing Weapon . | . . . Piercing Weapon . | . . . Special Melee Weapon . | . . . Unidentified Prototypes . | . . . Parts Lost 6 | . . 6 Power 1 | . . 1 Propulsion 2 | . . 2 Utility . | . . . Weapon 3 | . . 3 Highest Loss Streak 5 | . . 5 To Critical Strikes . | . . . Average Slot Usage (%) 94 | . 97 85 Engine 11 | . 14 1 Treads 5 | . . 27 Leg 22 | . 28 . Storage 14 | . 14 14 Processor 12 | . 11 14 Ballistic Gun 26 | . 26 27 Peak Build Rating 10 | 4 10 10 Average Rating 8 | 3 8 8 On Entrance 4 | . 4 10 Naked Turns . | . . . Heaviest Build 49 | 10 49 49 Greatest Support 40 | 20 20 40 Greatest Overweight (x) 3 | . 2 3 Average Overweight (x) . | . . 1 Largest Inventory Capacity 20 | 8 20 20 Average Capacity 16 | 6 16 20 Most Carried 19 | 8 17 19 Average Carried 12 | 4 11 15 Final Capacity 20 | 8 20 20 Final Carried 17 | 8 17 13 Class Distribution -------------------- 70% | Mutant 29% | Scavenger-Mutant Dominant Class ---------------- Mutant | -10/Materials Mutant | -10/Mines Resources | -11 -10 -10 ----------- Run | Yrd Mat Min Matter Collected 851 | 190 518 143 Remotely . | . . . Salvage Created 716 | . 582 134 Parts 52 | . 47 5 Haulers Intercepted 1 | . 1 . Recyclers Shooed . | . . . Parts Field Recycled . | . . . Retrieved Matter . | . . . Parts Self-Destructed . | . . . Prevented . | . . . Kills | -11 -10 -10 ------- Run | Yrd Mat Min Combat Hostiles Destroyed 19 | . 15 4 Guns 10 | . 6 4 AOE 9 | . 9 . Classes Destroyed 9 | . 7 2 Worker 2 | . 2 . Builder 1 | . 1 . Hauler 1 | . 1 . Operator 1 | . 1 . Watcher 3 | . 3 . Swarmer 3 | . 3 . Grunt 14 | . 12 2 Demolisher 1 | . . 1 Assembled 1 | . . 1 Best Kill Streak 4 | . 4 1 Combat Bots Only 3 | . 3 1 Max Kills in Single Turn 2 | . 2 1 Gunslinging . | . . . Exploded 2 | . 2 . Melee . | . . . Uniques/NPCs Destroyed . | . . . Combat | -11 -10 -10 -------- Run | Yrd Mat Min Hostile Shots Fired 78 | . 45 33 Missed 14 | . 10 4 Damage Taken 1394 | . 412 982 Core 264 | . 46 218 Absorbed by Shields . | . . . Regen/Repaired (Parts) 44 | . 44 . Core Remaining (%) 100 | 100 . . Volleys Fired 58 | . 40 18 Largest 2 | . 2 2 Hottest 40 | . 40 40 Shots Fired 90 | . 62 28 Gun 74 | . 46 28 Cannon . | . . . Launcher 16 | . 16 . Special . | . . . Kinetic 74 | . 46 28 Thermal . | . . . Explosive 16 | . 16 . Electromagnetic . | . . . Robot Hit Streak 18 | . 7 18 Robot Miss Streak 3 | . 3 2 Penetration Max . | . . . Secondary Targets . | . . . Shots Hit Robots 50 | . 26 24 Core Hits 44 | . 32 12 Critical Kills . | . . . Critical Parts Destroyed 1 | . . 1 Critical Strikes 1 | . . 1 Destroy 1 | . . 1 Melee Attacks . | . . . Impact . | . . . Slashing . | . . . Piercing . | . . . Sneak Attacks . | . . . Combat Hostiles . | . . . Follow-up Attacks . | . . . Damage Inflicted 1322 | . 1014 308 Guns 662 | . 354 308 Cannons . | . . . Explosions 660 | . 660 . Melee . | . . . Ramming . | . . . Kinetic 662 | . 354 308 Thermal . | . . . Explosive 660 | . 660 . Electromagnetic . | . . . Impact . | . . . Slashing . | . . . Piercing . | . . . Highest Corruption . | . . . Average Corruption . | . . . Corruption Purged . | . . . Corruption Blocked . | . . . Overload Shots . | . . . Overflow Damage 51 | . 51 . Projectiles . | . . . Explosions 51 | . 51 . Melee . | . . . Knockbacks . | . . . Impact . | . . . Kinetic . | . . . Secondary . | . . . Self-Inflicted Damage 33 | . 33 . Shots 3 | . 3 . Rammed . | . . . Targets Rammed . | . . . Kicked . | . . . Crushed . | . . . Highest Temperature 4 | . 4 2 Average Temperature 1 | . 2 1 Received Heat Transfer 249 | . 165 84 Siege Activations . | . . . Robots Corrupted . | . . . Combat Hostiles . | . . . Parts Fried . | . . . Impact Corruptions . | . . . Robots Melted . | . . . Combat Hostiles . | . . . Parts Melted . | . . . Heat Transferred . | . . . Parts Sabotaged . | . . . Parts Stolen . | . . . Parts Stripped . | . . . Power Chain Reactions . | . . . Alert | -11 -10 -10 ------- Run | Yrd Mat Min Peak Influence 276 | . 276 50 Initial 39 | . . 39 Average 72 | . 87 29 Maximum Alert Level 1 | . 1 . Low Security (%) 90 | 100 86 100 Level 1 9 | . 13 . Level 2 . | . . . Level 3 . | . . . Level 4 . | . . . Level 5 . | . . . High Security . | . . . Max Security . | . . . Squads Dispatched 3 | . 3 . Investigation 2 | . 2 . Extermination . | . . . Reinforcement 1 | . 1 . Assault . | . . . Garrison . | . . . Intercept . | . . . Searches Triggered . | . . . Construction Impeded . | . . . Haulers Reinforced . | . . . Active Scanning Responses . | . . . Cargo Convoy Interrupts . | . . . Stealth | -11 -10 -10 --------- Run | Yrd Mat Min Distress Signals 1 | . 1 . Communications Jammed . | . . . Distress Signals . | . . . Times Spotted 43 | . 26 17 Peak Tracking Total 6 | . 4 6 Tactical Retreats 2 | . 2 . Traps | -11 -10 -10 ------- Run | Yrd Mat Min Traps Triggered 2 | . 2 . Indirectly . | . . . Trap Hack Attempts . | . . . Triggered . | . . . Disarmed . | . . . Reprogrammed . | . . . Reused . | . . . Traps Extracted . | . . . Installed 5 | . . 5 Triggered . | . . . Most Traps Carried 5 | . . 5 Machines | -11 -10 -10 ---------- Run | Yrd Mat Min Machines Disabled . | . . . Max in Single Turn . | . . . Machines Repaired . | . . . Machines Dismantled . | . . . Machines Sabotaged . | . . . Overloaded Fab Kills . | . . . Hacking | -11 -10 -10 --------- Run | Yrd Mat Min Machines Accessed 7 | . 7 . Terminals 6 | . 6 . Fabricators . | . . . Repair Stations 1 | . 1 . Recycling Units . | . . . Scanalyzers . | . . . Garrison Access . | . . . Total Hacks 26 | . 26 . Successful 10 | . 10 . Failed 16 | . 16 . Catastrophic 2 | . 2 . Database Lockouts . | . . . Manual 19 | . 19 . Terminals 24 | . 24 . Fabricators . | . . . Repair Stations 2 | . 2 . Recycling Units . | . . . Scanalyzers . | . . . Garrison Access . | . . . Terminal Hacks 5 | . 5 . Robot Schematic 1 | . 1 . Robot Analysis 1 | . 1 . Prototype ID Bank 1 | . 1 . Patrol Status 1 | . 1 . Hauler Manifests 1 | . 1 . Fabricator Hacks . | . . . Repair Station Hacks 2 | . 2 . Scan Component 1 | . 1 . Repair 1 | . 1 . Recycling Unit Hacks . | . . . Scanalyzer . | . . . Garrison Access Hacks . | . . . Unauthorized Hacks 3 | . 3 . Terminals 3 | . 3 . Botnet 2 | . 2 . Operators 1 | . 1 . Fabricators . | . . . Repair Stations . | . . . Recycling Units . | . . . Scanalyzers . | . . . Garrison Access . | . . . Data Cores Recovered . | . . . Used . | . . . Hacking Detections 7 | . 7 . Full Trace Events 1 | . 1 . Feedback Events . | . . . Feedback Blocked . | . . . Robot Schematics Acquired 1 | . 1 . Robots Built . | . . . Authchips . | . . . Time . | . . . Total Robot Build Rating . | . . . Part Schematics Acquired . | . . . Parts Built . | . . . Authchips . | . . . Time . | . . . Total Part Build Rating . | . . . Parts Repaired 1 | . 1 . Time 26 | . 26 . Parts Recycled . | . . . Recycled Matter . | . . . Retrieved Matter . | . . . Retrieved Components . | . . . Parts Scanalyzed . | . . . Part Schematics Acquired . | . . . Parts Damaged . | . . . Bothacking | -11 -10 -10 ------------ Run | Yrd Mat Min Used RIF Installer . | . . . Robots Hacked . | . . . Non-combat . | . . . Combat . | . . . Robot Hacks Applied . | . . . Relay Couplers Released . | . . . Fabnet Peak Effective % . | . . . Robots Rewired . | . . . Allies Hacked . | . . . Hacks Repelled . | . . . Allies | -11 -10 -10 -------- Run | Yrd Mat Min Total Allies . | . . . Largest Group . | . . . Highest-Rated Group . | . . . Highest-Rated Ally . | . . . Total Orders . | . . . Ally Attacks . | . . . Total Damage . | . . . Kills . | . . . Allies Corrupted . | . . . Allies Melted . | . . . Intel | -11 -10 -10 ------- Run | Yrd Mat Min Robot Analysis Total 1 | . 1 . Derelict Logs Recovered 1 | . . 1 Drone Launches . | . . . Drone Recoveries . | . . . Exploration | -11 -10 -10 ------------- Run | Yrd Mat Min Turns Passed 2974 | 82 2258 634 Spaces Moved 1356 | 49 1076 231 Core 6 | 6 . . Treads 252 | 29 . 223 Legs 1094 | 10 1076 8 Wheels 4 | 4 . . Hover . | . . . Flight . | . . . Fastest Speed 50 | 50 120 240 Average Speed 193 | 133 186 241 Slowest Speed 330 | 160 260 330 Overloaded Moves . | . . . Propulsion Burnouts . | . . . Robots Hopped . | . . . Cave-ins Triggered . | . . . Exploration Rate (%) 49 | 4 97 46 Regions Visited 2 Branch Regions 1 Pre-discovered Areas 1 | . . 1 Known Exits Taken . | . . . Unknown Exits Taken 2 | 1 1 . Scrap Searched 1 | . . 1 Spaces Dug 8 | . 8 . Terrain Destroyed 80 | . 80 . Melee . | . . . Projectile . | . . . AOE 80 | . 80 . Terrain Rammed . | . . . Walls Destroyed . | . . . Machines Disabled . | . . . Actions | -11 -10 -10 --------- Run | Yrd Mat Min Total 1611 | 62 1266 283 Wait 127 | . 118 9 Move 1354 | 48 1075 231 Hop . | . . . Pick Up 25 | 8 10 7 Fast Attach 8 | 4 4 . Attach 6 | . . 6 Detach . | . . . Swap 15 | 2 12 1 Drop 13 | . 7 6 Fire 58 | . 40 18 Melee . | . . . Ram . | . . . Kick . | . . . Crush . | . . . Escape Stasis . | . . . Rewire . | . . . Trap 5 | . . 5 Miscellaneous . | . . . Route ------- -11/Scrapyard -10/Materials (discovered 5 exits: [*Mat x3] / [*Min x2]) -10/Mines (discovered 1 exit: [*Mat]) History --------- Turn | Location | Event 11 | -11/Scrapyard | Discovered new exit (range 16) 83 | -11/Scrapyard | Entered Materials 266 | -10/Materials | Discovered new exit (range 16) 318 | -10/Materials | Build established: Mutant 516 | -10/Materials | Discovered new exit (range 18) 549 | -10/Materials | Discovered new exit (range 6) 828 | -10/Materials | Discovered new exit (range 18) 917 | -10/Materials | Repaired Grenade Launcher 944 | -10/Materials | Discovered new exit (range 13) 1762 | -10/Materials | Build established: Scavenger-Mutant 2341 | -10/Materials | Entered Mines 2342 | -10/Mines | Assembled infested the area 2347 | -10/Mines | Assisted by a Guerilla fighting off Assembled 2362 | -10/Mines | Core integrity fell below 50% 2366 | -10/Mines | Core integrity fell below 20% 2395 | -10/Mines | Lost 5 parts (1p2n2w) 2516 | -10/Mines | Found a hidden stash of uninstalled traps 2647 | -10/Mines | Build established: Mutant 2798 | -10/Mines | A weapon hastily lodged in a ceiling crevice suddenly fell to the ground 2912 | -10/Mines | Learned location of Storage (-8) 2914 | -10/Mines | Discovered new exit (range 6) 2975 | -10/Mines | Destroyed by as-24928 with Assembled Maul Last Messages --------------- 02665_ Installed Shock Trap. 02671_ YI-UF0 destroyed. 02671_ Acquired 21 matter. 02672_ The unstable cave ceiling collapses. 02712_ Dropped Shock Trap. 02713_ Installed Shock Trap. 02798_ A Bore Cannon has been hastily shoved under some rubble with a note attached: "Boring, it is not. Although I admit enemies do get bored, for sure." 02803_ Acquired Bore Cannon. 02912_ Acquired derelict log, extracted data. World map updated: -8/Storage. 02914_ EXIT=FOUND 02925_ Assault Rifle destroyed. 02931_ G-47 Trooper destroyed. 02952_ G-34 Mercenary destroyed. 02955_ Acquired 50 matter. 02960_ Acquired 13 matter. 02966_ Dropped Ion Engine. 02967_ Acquired 10 matter. Map ----- +----------------------------------------------------+ | | | | | | | | | | | | | | | | | | | | | | | | | ?????????????????????????????????????????????????? | | ?????????????????????????????????????????????????? | | ?????????????????????????????????????####????????? | | ????????????????????????????????????## ##???????? | | ????????????????????????????????????# ##??????? | | ????????????????????????????????????# ######?? | | ????????????????????????????????????## ## ##? | | ?????????????????????????????????????#### ## | | ????????????????????????????????????????## | | ??????????????????????????????????######## | | ??????????????????????????????????# ## | | ???????????????????######???####### ###? | | ????????????????#### a####* ###### ##??? | | ?????????????? """ @ [%! #????####???? | | ????????????????#### """ ####*########???????????? | | ???????????????????# """ #### #??????????????????? | | ???????????????????# =#??????????????????? | | ???????????????????# < #??????????????????? | | ???????????????????# ######??????????????????? | | ???????????????????#####?????????????????????????# | | ?????????????????????????????????????????????????# | | ?????????????????????????????????????????????????# | | ?????????????????????????????????????????????????# | | ??????????????????????????????? ??????????????# | | ????????????????????????????? ?????????????? | | ?????????????????????????????# ?????????????? | | ?????????????????????????????? ?????????????? | | ?????????????????????????????? ?????????????? | | ??????????????????????????????# ?????????????? | | ????????????????????????????### ????????????## | | ????????????????????????????? ????????????# | | ??????????????????????????????# #???????????# # | | ??????????????????????????????# #???????????# # | | ?????????????????????????????## #?????????### # | | ????????????????????????????## #???##?#### # | | ??????????????????????????# # ??## ## # | | ?????????????????????????? % ## | | ?????????????????????????????# | +----------------------------------------------------+ Best States ------------- Heat Dissipation 25 Energy Generation 10 Energy Capacity 250 Matter Stores 300 Matter Capacity 300 Sight Range 18 Terrain Scan Density 10 Evasion (%) 55 Recoil Reduction 2 Item Schematics ----------------- None Robot Schematics ------------------ M-13 Machinist | -10/Materials | Hacked Fabricated ------------ Nothing Alien Tech Used ----------------- None Achievements -------------- None Challenges ------------ None Game ------ Seed ThunderGhostBattery Manual? 0 Play Time 00:17:22 Cumulative 454.7 hours Start 2025.04.27 @ 21:33:50 End 2025.04.27 @ 22:08:41 Sessions 1 Manual Loads 0 Difficulty Rogue Special Mode None Game No. 289 Rogue 286 Adventurer 3 Explorer 0 Win Type - Total 8 Types 7/0/1/0/0/0/0/0/0 Lore% 60 Gallery% 74 Achievement% 67 Wizard Run 0 Options --------- Layout 0 ASCII 0 Keyboard 0 Movement Numpad Keybinds 0 Fullscreen 1 Font 18/SmallcapsGlow Map View 76x50 Zoom Use 0% Tactical HUD 1 Map Filters NONE Filters NONE Steam 1 RUN: 3c467b9e-493c-4ae5-a942-a50e02f78fd1